[Event "Early-Titled-Tuesday-Blitz-February-27-2024"]
[Site "Chess.com"]
[Date "2024.02.27"]
[Round "10"]
[White "vi_pranav"]
[Black "blitzking1729"]
[Result "1-0"]
[WhiteElo "3107"]
[BlackElo "2752"]
[TimeControl "180+1"]
[EndTime "9:58:21 PST"]
[Termination "vi_pranav won by resignation"]

1. d4 {[%clk 0:03:00.9]} 1... d5 {[%clk 0:02:56.5]} 2. Nc3 {[%clk 0:03:00.9]}
2... Nf6 {[%clk 0:02:56.2]} 3. Bf4 {[%clk 0:03:00.8]} 3... c5 {[%clk 0:02:54.9]}
4. e4 {[%clk 0:03:00.8]} 4... Nxe4 {[%clk 0:02:40.6]} 5. Nxe4 {[%clk 0:03:00.1]}
5... dxe4 {[%clk 0:02:41.3]} 6. dxc5 {[%clk 0:03:00.9]} 6... Qxd1+ {[%clk
0:02:41.7]} 7. Rxd1 {[%clk 0:02:59.8]} 7... Nc6 {[%clk 0:02:38.1]} 8. Ne2 {[%clk
0:02:56.4]} 8... e5 {[%clk 0:02:37.4]} 9. Be3 {[%clk 0:02:55.7]} 9... f5 {[%clk
0:02:34.1]} 10. Nc3 {[%clk 0:02:44]} 10... Be6 {[%clk 0:02:27.1]} 11. Bb5 {[%clk
0:02:31]} 11... Kf7 {[%clk 0:02:21.4]} 12. g3 {[%clk 0:02:19.8]} 12... Nd4
{[%clk 0:02:20.4]} 13. Bxd4 {[%clk 0:02:02.7]} 13... exd4 {[%clk 0:02:21.3]} 14.
Ne2 {[%clk 0:02:03.1]} 14... a6 {[%clk 0:01:58.2]} 15. Ba4 {[%clk 0:02:00.1]}
15... Bxc5 {[%clk 0:01:52.7]} 16. Nxd4 {[%clk 0:01:59.6]} 16... Bxd4 {[%clk
0:01:51.7]} 17. Rxd4 {[%clk 0:02:00.5]} 17... Rhd8 {[%clk 0:01:51.7]} 18. Rxd8
{[%clk 0:01:57.7]} 18... Rxd8 {[%clk 0:01:51.4]} 19. Bb3 {[%clk 0:01:44.2]}
19... Bxb3 {[%clk 0:01:36.1]} 20. axb3 {[%clk 0:01:45.1]} 20... Kf6 {[%clk
0:01:35.2]} 21. h4 {[%clk 0:01:44]} 21... Ke5 {[%clk 0:01:16.3]} 22. Ke2 {[%clk
0:01:42.5]} 22... g6 {[%clk 0:01:15.3]} 23. Ra1 {[%clk 0:01:41.2]} 23... h6
{[%clk 0:01:11.4]} 24. Ra5+ {[%clk 0:01:36.4]} 24... Rd5 {[%clk 0:01:09.6]} 25.
Ra1 {[%clk 0:01:25.4]} 25... Rc5 {[%clk 0:01:05]} 26. c4 {[%clk 0:01:12.4]}
26... g5 {[%clk 0:01:04.1]} 27. hxg5 {[%clk 0:01:04.2]} 27... hxg5 {[%clk
0:01:05]} 28. Kd2 {[%clk 0:01:00]} 28... Kd4 {[%clk 0:00:53.8]} 29. Rd1 {[%clk
0:00:40]} 29... Re5 {[%clk 0:00:44]} 30. Kc2+ {[%clk 0:00:25.3]} 30... Kc5
{[%clk 0:00:43.4]} 31. Kc3 {[%clk 0:00:26.2]} 31... a5 {[%clk 0:00:38.2]} 32.
Rd8 {[%clk 0:00:12.1]} 32... e3 {[%clk 0:00:35.6]} 33. fxe3 {[%clk 0:00:12.6]}
33... Rxe3+ {[%clk 0:00:35.4]} 34. Kc2 {[%clk 0:00:12.7]} 34... Rxg3 {[%clk
0:00:34.9]} 35. Rd5+ {[%clk 0:00:12.3]} 35... Kb6 {[%clk 0:00:33.3]} 36. Rxf5
{[%clk 0:00:12.3]} 36... Ka6 {[%clk 0:00:32.3]} 37. Rf6+ {[%clk 0:00:07.5]}
37... Ka7 {[%clk 0:00:31]} 38. Rg6 {[%clk 0:00:07.7]} 38... b6 {[%clk
0:00:27.7]} 39. Rg7+ {[%clk 0:00:06]} 39... Ka6 {[%clk 0:00:27.7]} 40. Rf7
{[%clk 0:00:04.8]} 40... g4 {[%clk 0:00:25.5]} 41. Rg7 {[%clk 0:00:05.2]} 41...
Rg1 {[%clk 0:00:24.3]} 42. Kc3 {[%clk 0:00:04.3]} 42... g3 {[%clk 0:00:22.1]}
43. b4 {[%clk 0:00:04.7]} 43... axb4+ {[%clk 0:00:19.8]} 44. Kxb4 {[%clk
0:00:05.6]} 44... g2 {[%clk 0:00:14.9]} 45. b3 {[%clk 0:00:05.9]} 45... Rf1
{[%clk 0:00:11.1]} 46. Rxg2 {[%clk 0:00:05.3]} 46... Rf7 {[%clk 0:00:11.6]} 47.
Rg6 {[%clk 0:00:05.5]} 47... Kb7 {[%clk 0:00:12.1]} 48. Rd6 {[%clk 0:00:05]}
48... Rh7 {[%clk 0:00:12.2]} 49. Kb5 {[%clk 0:00:05]} 49... Rh5+ {[%clk
0:00:12.3]} 50. Rd5 {[%clk 0:00:05.5]} 50... Rh7 {[%clk 0:00:11.8]} 51. b4
{[%clk 0:00:06]} 51... Rg7 {[%clk 0:00:11.9]} 52. Re5 {[%clk 0:00:06.1]} 52...
Rh7 {[%clk 0:00:12.2]} 53. Rd5 {[%clk 0:00:05.5]} 53... Rg7 {[%clk 0:00:12.5]}
54. Ka4 {[%clk 0:00:06]} 54... Rh7 {[%clk 0:00:12.2]} 55. Rb5 {[%clk 0:00:06.4]}
55... Kc6 {[%clk 0:00:10.2]} 56. Rg5 {[%clk 0:00:05.8]} 56... Kb7 {[%clk
0:00:10.5]} 57. Rg6 {[%clk 0:00:04.2]} 57... Rf7 {[%clk 0:00:09.6]} 58. Kb3
{[%clk 0:00:04.2]} 58... Rf3+ {[%clk 0:00:09.2]} 59. Ka4 {[%clk 0:00:04.8]}
59... Rf7 {[%clk 0:00:09.9]} 60. Re6 {[%clk 0:00:04.6]} 60... Rg7 {[%clk
0:00:10]} 61. Re4 {[%clk 0:00:05.1]} 61... Rh7 {[%clk 0:00:10.2]} 62. Kb5 {[%clk
0:00:05.3]} 62... Rh5+ {[%clk 0:00:10.3]} 63. c5 {[%clk 0:00:05.8]} 63... bxc5
{[%clk 0:00:10.5]} 64. bxc5 {[%clk 0:00:06.7]} 64... Rh6 {[%clk 0:00:08]} 65.
Re7+ {[%clk 0:00:07]} 65... Kc8 {[%clk 0:00:07.5]} 66. Rf7 {[%clk 0:00:07.4]}
66... Rg6 {[%clk 0:00:07.7]} 67. Ra7 {[%clk 0:00:08]} 67... Rh6 {[%clk
0:00:07.9]} 68. Re7 {[%clk 0:00:08.3]} 68... Rg6 {[%clk 0:00:08.1]} 69. Kc4
{[%clk 0:00:07.5]} 69... Rh6 {[%clk 0:00:06.5]} 70. Kd5 {[%clk 0:00:08.1]} 70...
Rh5+ {[%clk 0:00:06.5]} 71. Kc6 {[%clk 0:00:07.1]} 71... Rh6+ {[%clk 0:00:06.6]}
72. Kb5 {[%clk 0:00:07]} 72... Rg6 {[%clk 0:00:07]} 73. Rh7 {[%clk 0:00:07.6]}
73... Rf6 {[%clk 0:00:07.1]} 74. Rh4 {[%clk 0:00:07]} 74... Rg6 {[%clk
0:00:07.3]} 75. Ra4 {[%clk 0:00:07.4]} 75... Kb7 {[%clk 0:00:06.3]} 76. Ra1
{[%clk 0:00:06.7]} 76... Rh6 {[%clk 0:00:06]} 77. Rd1 {[%clk 0:00:05]} 77... Kc8
{[%clk 0:00:06.3]} 78. Rg1 {[%clk 0:00:03.8]} 78... Kc7 {[%clk 0:00:05.3]} 79.
Rg7+ {[%clk 0:00:03.8]} 79... Kc8 {[%clk 0:00:05.8]} 80. Ka5 {[%clk 0:00:03.8]}
80... Rf6 {[%clk 0:00:04.3]} 81. Kb5 {[%clk 0:00:03]} 81... Rh6 {[%clk
0:00:04.5]} 82. Ra7 {[%clk 0:00:02.7]} 82... Rg6 {[%clk 0:00:04.7]} 83. Ra3
{[%clk 0:00:02.4]} 83... Rh6 {[%clk 0:00:04.8]} 84. Re3 {[%clk 0:00:03.1]} 84...
Rg6 {[%clk 0:00:04.9]} 85. Rd3 {[%clk 0:00:03.2]} 85... Rh6 {[%clk 0:00:05.1]}
86. Rd5 {[%clk 0:00:03.9]} 86... Rg6 {[%clk 0:00:05.3]} 87. Rh5 {[%clk
0:00:04.6]} 87... Rf6 {[%clk 0:00:05.4]} 88. Rg5 {[%clk 0:00:05.3]} 88... Rh6
{[%clk 0:00:05.4]} 89. Re5 {[%clk 0:00:06]} 89... Rg6 {[%clk 0:00:05.6]} 90. Kc4
{[%clk 0:00:06.6]} 90... Kc7 {[%clk 0:00:05.9]} 91. Kd5 {[%clk 0:00:07.1]} 91...
Rh6 {[%clk 0:00:05.7]} 92. Re7+ {[%clk 0:00:07.6]} 92... Kc8 {[%clk 0:00:06.2]}
93. Rf7 {[%clk 0:00:05.8]} 93... Rh5+ {[%clk 0:00:06.4]} 94. Kd6 {[%clk
0:00:05.9]} 94... Rh6+ {[%clk 0:00:06.7]} 95. Kd5 {[%clk 0:00:06.4]} 95... Rh5+
{[%clk 0:00:07.3]} 96. Kc4 {[%clk 0:00:07.3]} 96... Rh6 {[%clk 0:00:07.7]} 97.
Kb5 {[%clk 0:00:08.2]} 97... Rg6 {[%clk 0:00:08]} 98. Rf1 {[%clk 0:00:07.7]}
98... Rh6 {[%clk 0:00:08.2]} 99. Rg1 {[%clk 0:00:08.1]} 99... Rf6 {[%clk
0:00:08.3]} 100. Rg2 {[%clk 0:00:07.3]} 100... Rh6 {[%clk 0:00:08.1]} 101. Rg7
{[%clk 0:00:04.7]} 101... Rf6 {[%clk 0:00:08.3]} 102. c6 {[%clk 0:00:04.3]}
102... Rf5+ {[%clk 0:00:08.5]} 103. Kb6 {[%clk 0:00:04.6]} 103... Rf8 {[%clk
0:00:04]} 104. Ra7 {[%clk 0:00:05]} 1-0

[Event "Early-Titled-Tuesday-Blitz-February-27-2024"]
[Site "Chess.com"]
[Date "2024.02.27"]
[Round "11"]
[White "Vesapesa"]
[Black "emiliochess"]
[Result "1-0"]
[WhiteElo "2245"]
[BlackElo "2345"]
[TimeControl "180+1"]
[EndTime "10:01:29 PST"]
[Termination "Vesapesa won by resignation"]

1. e4 {[%clk 0:03:00.9]} 1... c5 {[%clk 0:02:37]} 2. Nf3 {[%clk 0:03:00.1]} 2...
e6 {[%clk 0:02:36.6]} 3. c4 {[%clk 0:02:59.7]} 3... d5 {[%clk 0:02:37.5]} 4.
exd5 {[%clk 0:02:57.6]} 4... exd5 {[%clk 0:02:38.4]} 5. d4 {[%clk 0:02:57.1]}
5... Nf6 {[%clk 0:02:33.5]} 6. Nc3 {[%clk 0:02:55.8]} 6... Nc6 {[%clk
0:02:19.4]} 7. Be3 {[%clk 0:02:54.6]} 7... Bg4 {[%clk 0:02:16]} 8. Be2 {[%clk
0:02:48.3]} 8... Be7 {[%clk 0:02:13.6]} 9. dxc5 {[%clk 0:02:45.9]} 9... dxc4
{[%clk 0:02:13.9]} 10. O-O {[%clk 0:02:39.5]} 10... O-O {[%clk 0:02:13.9]} 11.
Qa4 {[%clk 0:02:33.4]} 11... Nd5 {[%clk 0:02:09.6]} 12. Nxd5 {[%clk 0:02:23.8]}
12... Qxd5 {[%clk 0:02:10.5]} 13. Bxc4 {[%clk 0:02:13.5]} 13... Qh5 {[%clk
0:02:10.6]} 14. Be2 {[%clk 0:02:09.1]} 14... Bxc5 {[%clk 0:02:09.9]} 15. Bxc5
{[%clk 0:02:01.9]} 15... Qxc5 {[%clk 0:02:10.8]} 16. Rac1 {[%clk 0:01:58.4]}
16... Qb6 {[%clk 0:02:10.2]} 17. Qxg4 {[%clk 0:01:56.3]} 17... h6 {[%clk
0:02:08.1]} 18. Bd3 {[%clk 0:01:47.4]} 1-0

[Event "Early-Titled-Tuesday-Blitz-February-27-2024"]
[Site "Chess.com"]
[Date "2024.02.27"]
[Round "11"]
[White "tsaruk_maks"]
[Black "vishwa_vijeta"]
[Result "1-0"]
[WhiteElo "2736"]
[BlackElo "2597"]
[TimeControl "180+1"]
[EndTime "10:01:45 PST"]
[Termination "tsaruk_maks won by resignation"]

1. d4 {[%clk 0:03:00.9]} 1... Nf6 {[%clk 0:02:56.3]} 2. c4 {[%clk 0:03:00.2]}
2... g6 {[%clk 0:02:55.5]} 3. Nc3 {[%clk 0:02:59.6]} 3... d5 {[%clk 0:02:55.8]}
4. cxd5 {[%clk 0:02:59.1]} 4... Nxd5 {[%clk 0:02:56.7]} 5. e4 {[%clk 0:02:59.7]}
5... Nxc3 {[%clk 0:02:57.1]} 6. bxc3 {[%clk 0:03:00.6]} 6... Bg7 {[%clk
0:02:57.6]} 7. Bc4 {[%clk 0:03:00.8]} 7... O-O {[%clk 0:02:57.5]} 8. Be3 {[%clk
0:02:58.8]} 8... c5 {[%clk 0:02:57.7]} 9. Nf3 {[%clk 0:02:58.7]} 9... Nc6 {[%clk
0:02:54.4]} 10. h3 {[%clk 0:02:53]} 10... Qa5 {[%clk 0:02:49.5]} 11. Qd2 {[%clk
0:02:52.6]} 11... Rd8 {[%clk 0:02:45.7]} 12. Rd1 {[%clk 0:02:51.6]} 12... b5
{[%clk 0:02:35]} 13. Bd5 {[%clk 0:02:50.2]} 13... Bb7 {[%clk 0:02:34.6]} 14. O-O
{[%clk 0:02:48.3]} 14... e6 {[%clk 0:02:33.6]} 15. Bxc6 {[%clk 0:02:42.4]} 15...
Bxc6 {[%clk 0:02:32.5]} 16. Bh6 {[%clk 0:02:34.3]} 16... Bxe4 {[%clk 0:02:20.7]}
17. Bxg7 {[%clk 0:02:33.6]} 17... Bxf3 {[%clk 0:02:20.7]} 18. Qh6 {[%clk
0:02:33.5]} 18... f5 {[%clk 0:01:34.5]} 19. Be5 {[%clk 0:02:30.1]} 19... Rd7
{[%clk 0:01:32.7]} 20. gxf3 {[%clk 0:02:29.3]} 20... Qxc3 {[%clk 0:01:32.7]} 21.
dxc5 {[%clk 0:02:25.5]} 1-0

[Event "Early-Titled-Tuesday-Blitz-February-27-2024"]
[Site "Chess.com"]
[Date "2024.02.27"]
[Round "11"]
[White "ReadySkate"]
[Black "chess94cu"]
[Result "1-0"]
[WhiteElo "2575"]
[BlackElo "2679"]
[TimeControl "180+1"]
[EndTime "10:03:02 PST"]
[Termination "ReadySkate won by resignation"]

1. d4 {[%clk 0:03:00.9]} 1... Nf6 {[%clk 0:02:58.5]} 2. c4 {[%clk 0:03:01.4]}
2... e6 {[%clk 0:02:58.7]} 3. Nc3 {[%clk 0:03:01.7]} 3... Bb4 {[%clk 0:02:58]}
4. f3 {[%clk 0:03:02.2]} 4... d5 {[%clk 0:02:57.6]} 5. a3 {[%clk 0:03:02.3]}
5... Bxc3+ {[%clk 0:02:57.1]} 6. bxc3 {[%clk 0:03:03.2]} 6... c5 {[%clk
0:02:57.8]} 7. cxd5 {[%clk 0:03:03.6]} 7... Nxd5 {[%clk 0:02:58.7]} 8. dxc5
{[%clk 0:03:03.9]} 8... Qa5 {[%clk 0:02:59.4]} 9. e4 {[%clk 0:03:03.5]} 9... Ne7
{[%clk 0:02:59.5]} 10. Be3 {[%clk 0:03:04.1]} 10... O-O {[%clk 0:02:58]} 11. Qb3
{[%clk 0:03:04.5]} 11... Nbc6 {[%clk 0:02:57.7]} 12. Bb5 {[%clk 0:03:02.4]}
12... a6 {[%clk 0:02:39.4]} 13. Bxc6 {[%clk 0:02:58.9]} 13... Nxc6 {[%clk
0:02:40.3]} 14. Ne2 {[%clk 0:02:58.7]} 14... Qc7 {[%clk 0:02:26.4]} 15. O-O
{[%clk 0:02:56.4]} 15... e5 {[%clk 0:02:27]} 16. Rad1 {[%clk 0:02:56.6]} 16...
Be6 {[%clk 0:02:27.4]} 17. Rd5 {[%clk 0:02:56.8]} 17... f5 {[%clk 0:02:09.9]}
18. Rfd1 {[%clk 0:02:53.1]} 18... fxe4 {[%clk 0:02:07.8]} 19. fxe4 {[%clk
0:02:54]} 19... Ne7 {[%clk 0:01:42.7]} 20. Ng3 {[%clk 0:02:43.1]} 20... Kh8
{[%clk 0:01:33.6]} 21. c4 {[%clk 0:02:42.1]} 21... Nc6 {[%clk 0:01:07.8]} 22.
Rd6 {[%clk 0:02:35.8]} 22... Na5 {[%clk 0:01:04]} 23. Qc3 {[%clk 0:02:34.9]}
23... Bxc4 {[%clk 0:01:01.8]} 24. Rd7 {[%clk 0:02:34.1]} 24... Qc6 {[%clk
0:00:51.3]} 25. Qxa5 {[%clk 0:02:33.2]} 25... h5 {[%clk 0:00:42.6]} 26. Qc3
{[%clk 0:02:31.3]} 26... Qe6 {[%clk 0:00:39.7]} 27. R1d6 {[%clk 0:02:28.4]}
27... Qg8 {[%clk 0:00:36.9]} 28. Qxe5 {[%clk 0:02:25.8]} 28... Qf7 {[%clk
0:00:33.3]} 29. Rxf7 {[%clk 0:02:23]} 1-0

[Event "Early-Titled-Tuesday-Blitz-February-27-2024"]
[Site "Chess.com"]
[Date "2024.02.27"]
[Round "11"]
[White "Casper"]
[Black "KorolDimitriy75"]
[Result "0-1"]
[WhiteElo "2542"]
[BlackElo "2437"]
[TimeControl "180+1"]
[EndTime "10:03:18 PST"]
[Termination "KorolDimitriy75 won by checkmate"]

1. e4 {[%clk 0:03:00.9]} 1... c5 {[%clk 0:03:00.2]} 2. d4 {[%clk 0:03:00.2]}
2... cxd4 {[%clk 0:02:59.9]} 3. Qxd4 {[%clk 0:03:01.1]} 3... Nc6 {[%clk
0:02:59.7]} 4. Qe3 {[%clk 0:03:01]} 4... g6 {[%clk 0:02:59.1]} 5. Nc3 {[%clk
0:03:01.3]} 5... Bg7 {[%clk 0:02:57.9]} 6. Bd2 {[%clk 0:03:01.9]} 6... Nf6
{[%clk 0:02:56.5]} 7. O-O-O {[%clk 0:03:02.4]} 7... O-O {[%clk 0:02:52.6]} 8. h4
{[%clk 0:03:01.7]} 8... d6 {[%clk 0:02:41]} 9. h5 {[%clk 0:03:00.7]} 9... Nxh5
{[%clk 0:02:06.3]} 10. Nf3 {[%clk 0:02:51.5]} 10... Qb6 {[%clk 0:01:45.3]} 11.
Qxb6 {[%clk 0:02:25]} 11... axb6 {[%clk 0:01:46.2]} 12. a3 {[%clk 0:02:22.2]}
12... Nf6 {[%clk 0:01:41.5]} 13. Be3 {[%clk 0:02:16.1]} 13... Ng4 {[%clk
0:01:29.1]} 14. Bxb6 {[%clk 0:02:15.5]} 14... Bxc3 {[%clk 0:01:25.7]} 15. bxc3
{[%clk 0:02:16.4]} 15... Rxa3 {[%clk 0:01:25.7]} 16. Kb2 {[%clk 0:02:17.1]}
16... Ra8 {[%clk 0:01:23.3]} 17. Bc4 {[%clk 0:02:06]} 17... Nce5 {[%clk
0:01:11.9]} 18. Bd5 {[%clk 0:01:55.6]} 18... Be6 {[%clk 0:01:09.5]} 19. Bxe6
{[%clk 0:01:47]} 19... fxe6 {[%clk 0:01:10.4]} 20. Ng5 {[%clk 0:01:47.4]} 20...
Nc4+ {[%clk 0:01:03.1]} 21. Kb3 {[%clk 0:01:45.3]} 21... Nxb6 {[%clk 0:01:04]}
22. Rxh7 {[%clk 0:01:45.4]} 22... Ra5 {[%clk 0:00:41.8]} 23. Rdh1 {[%clk
0:01:42.7]} 23... Rb5+ {[%clk 0:00:41]} 24. Ka2 {[%clk 0:01:40.2]} 24... Ra8#
{[%clk 0:00:41.9]} 0-1

[Event "Early-Titled-Tuesday-Blitz-February-27-2024"]
[Site "Chess.com"]
[Date "2024.02.27"]
[Round "11"]
[White "124chess"]
[Black "GMAkobianSTL"]
[Result "1-0"]
[WhiteElo "2586"]
[BlackElo "2815"]
[TimeControl "180+1"]
[EndTime "10:03:32 PST"]
[Termination "124chess won by resignation"]

1. d4 {[%clk 0:03:00.9]} 1... e6 {[%clk 0:02:58.8]} 2. Bf4 {[%clk 0:03:01.6]}
2... Nf6 {[%clk 0:02:58.4]} 3. e3 {[%clk 0:03:02.1]} 3... c5 {[%clk 0:02:58.4]}
4. Nf3 {[%clk 0:03:02.1]} 4... b6 {[%clk 0:02:55.4]} 5. Nbd2 {[%clk 0:03:01.8]}
5... Bb7 {[%clk 0:02:55]} 6. Nc4 {[%clk 0:03:01.9]} 6... d5 {[%clk 0:02:54.4]}
7. Nce5 {[%clk 0:03:02.1]} 7... Nbd7 {[%clk 0:02:54.7]} 8. Bb5 {[%clk
0:03:01.3]} 8... a6 {[%clk 0:02:54.5]} 9. Ng5 {[%clk 0:03:01.5]} 9... axb5
{[%clk 0:02:51.7]} 10. Nexf7 {[%clk 0:02:59.7]} 10... Qe7 {[%clk 0:02:45.9]} 11.
Nxh8 {[%clk 0:03:00.3]} 11... e5 {[%clk 0:02:40.1]} 12. dxe5 {[%clk 0:02:57.6]}
12... Nxe5 {[%clk 0:02:40.3]} 13. Nxh7 {[%clk 0:02:55.2]} 13... Nxh7 {[%clk
0:02:30.3]} 14. Qh5+ {[%clk 0:02:54.6]} 14... g6 {[%clk 0:02:28.6]} 15. Qxe5
{[%clk 0:02:47.8]} 15... g5 {[%clk 0:02:27.3]} 16. Bg3 {[%clk 0:02:39.7]} 16...
Bg7 {[%clk 0:02:26.9]} 17. Qxe7+ {[%clk 0:02:35]} 17... Kxe7 {[%clk 0:02:27]}
18. Ng6+ {[%clk 0:02:35.7]} 18... Ke6 {[%clk 0:02:25.6]} 19. h4 {[%clk
0:02:09.6]} 19... g4 {[%clk 0:02:25.2]} 20. c3 {[%clk 0:02:00.9]} 20... b4
{[%clk 0:02:25]} 21. Nf4+ {[%clk 0:02:00.1]} 21... Kf5 {[%clk 0:02:22.9]} 22.
O-O {[%clk 0:01:55.1]} 22... bxc3 {[%clk 0:02:22.8]} 23. bxc3 {[%clk 0:01:56]}
23... Bxc3 {[%clk 0:02:20.6]} 24. Rab1 {[%clk 0:01:56.4]} 24... Ra6 {[%clk
0:02:20.2]} 25. Rfd1 {[%clk 0:01:56.5]} 25... Nf6 {[%clk 0:02:19.2]} 26. h5
{[%clk 0:01:57]} 26... d4 {[%clk 0:02:06.7]} 27. Ne2 {[%clk 0:01:50.4]} 27...
Ne4 {[%clk 0:02:02.2]} 28. exd4 {[%clk 0:01:48.3]} 28... cxd4 {[%clk 0:01:50]}
29. Nxd4+ {[%clk 0:01:47.4]} 29... Bxd4 {[%clk 0:01:50.1]} 30. Rxd4 {[%clk
0:01:48.3]} 30... Nxg3 {[%clk 0:01:48.6]} 31. fxg3 {[%clk 0:01:37.2]} 31... Ke5
{[%clk 0:01:43.6]} 32. Rd2 {[%clk 0:01:25.9]} 32... Be4 {[%clk 0:01:41.7]} 33.
Re1 {[%clk 0:01:19.6]} 1-0

[Event "Early-Titled-Tuesday-Blitz-February-27-2024"]
[Site "Chess.com"]
[Date "2024.02.27"]
[Round "11"]
[White "Chernov_Alexander_A"]
[Black "campochess"]
[Result "1-0"]
[WhiteElo "2335"]
[BlackElo "2199"]
[TimeControl "180+1"]
[EndTime "10:03:33 PST"]
[Termination "Chernov_Alexander_A won by resignation"]

1. d4 {[%clk 0:02:49.2]} 1... Nf6 {[%clk 0:02:55]} 2. Nc3 {[%clk 0:02:49.1]}
2... d5 {[%clk 0:02:52.4]} 3. Bg5 {[%clk 0:02:48.5]} 3... Nbd7 {[%clk
0:02:49.5]} 4. Nf3 {[%clk 0:02:46.9]} 4... h6 {[%clk 0:02:47.8]} 5. Bh4 {[%clk
0:02:46.5]} 5... c6 {[%clk 0:02:46.3]} 6. e3 {[%clk 0:02:46.2]} 6... Qa5 {[%clk
0:02:45.8]} 7. Bd3 {[%clk 0:02:44]} 7... Ne4 {[%clk 0:02:43.1]} 8. O-O {[%clk
0:02:43.5]} 8... f5 {[%clk 0:02:40]} 9. Bxe4 {[%clk 0:02:27.2]} 9... dxe4 {[%clk
0:02:37.2]} 10. Nd2 {[%clk 0:02:26.6]} 10... Nf6 {[%clk 0:02:34.1]} 11. Bxf6
{[%clk 0:02:24.1]} 11... exf6 {[%clk 0:02:26.9]} 12. Qh5+ {[%clk 0:02:22.7]}
12... Kd8 {[%clk 0:02:26.8]} 13. Ndxe4 {[%clk 0:02:17.6]} 13... g6 {[%clk
0:02:22.3]} 14. Qxg6 {[%clk 0:02:15.6]} 14... fxe4 {[%clk 0:02:21.5]} 15. Qxf6+
{[%clk 0:02:15.6]} 15... Ke8 {[%clk 0:02:20.5]} 16. Qxh8 {[%clk 0:02:15.1]}
16... Qf5 {[%clk 0:02:17]} 17. f3 {[%clk 0:02:07.6]} 17... Qg5 {[%clk
0:02:10.8]} 18. fxe4 {[%clk 0:02:03.3]} 18... Qg7 {[%clk 0:01:52.7]} 19. Rxf8+
{[%clk 0:01:47.6]} 19... Qxf8 {[%clk 0:01:50.8]} 20. Qe5+ {[%clk 0:01:47]} 20...
Qe7 {[%clk 0:01:47.8]} 21. Qh5+ {[%clk 0:01:42.5]} 21... Kd8 {[%clk 0:01:46.6]}
22. Rf1 {[%clk 0:01:38.3]} 22... Be6 {[%clk 0:01:45.6]} 23. d5 {[%clk
0:01:34.9]} 23... Bd7 {[%clk 0:01:38.2]} 24. Qxh6 {[%clk 0:01:29]} 24... Qc5
{[%clk 0:01:35.8]} 25. Qf6+ {[%clk 0:01:25.6]} 25... Kc7 {[%clk 0:01:34.6]} 26.
Qd4 {[%clk 0:01:18.8]} 26... Qe7 {[%clk 0:01:26.9]} 27. e5 {[%clk 0:01:16.6]}
27... Qh7 {[%clk 0:01:17.3]} 28. e6 {[%clk 0:01:13]} 28... Be8 {[%clk
0:01:15.2]} 29. d6+ {[%clk 0:01:12.5]} 1-0

[Event "Early-Titled-Tuesday-Blitz-February-27-2024"]
[Site "Chess.com"]
[Date "2024.02.27"]
[Round "11"]
[White "TheAlienParty"]
[Black "VladimirBugayev"]
[Result "1-0"]
[WhiteElo "2387"]
[BlackElo "2248"]
[TimeControl "180+1"]
[EndTime "10:03:45 PST"]
[Termination "TheAlienParty won by checkmate"]

1. c4 {[%clk 0:03:00]} 1... c5 {[%clk 0:02:59.6]} 2. Nf3 {[%clk 0:02:59.2]} 2...
g6 {[%clk 0:02:58]} 3. d4 {[%clk 0:02:58.6]} 3... Bg7 {[%clk 0:02:54.3]} 4. e4
{[%clk 0:02:53.3]} 4... cxd4 {[%clk 0:02:49.9]} 5. Nxd4 {[%clk 0:02:51.6]} 5...
Nc6 {[%clk 0:02:48.2]} 6. Be3 {[%clk 0:02:51]} 6... Nf6 {[%clk 0:02:48]} 7. Nc3
{[%clk 0:02:49.1]} 7... O-O {[%clk 0:02:48.2]} 8. Rc1 {[%clk 0:02:44.4]} 8... d6
{[%clk 0:02:44.7]} 9. f3 {[%clk 0:02:42.8]} 9... Bd7 {[%clk 0:02:45]} 10. Be2
{[%clk 0:02:39.3]} 10... a5 {[%clk 0:02:40.1]} 11. O-O {[%clk 0:02:37.7]} 11...
Nxd4 {[%clk 0:02:40.3]} 12. Bxd4 {[%clk 0:02:35.6]} 12... Bc6 {[%clk 0:02:40.9]}
13. Qd2 {[%clk 0:02:31.7]} 13... Nd7 {[%clk 0:02:40.6]} 14. Be3 {[%clk
0:02:30.5]} 14... Nc5 {[%clk 0:02:40.8]} 15. b3 {[%clk 0:02:28.2]} 15... e6
{[%clk 0:02:31.7]} 16. Rfd1 {[%clk 0:02:26.9]} 16... Be5 {[%clk 0:02:31]} 17.
Bf1 {[%clk 0:02:14.3]} 17... f5 {[%clk 0:02:05.9]} 18. exf5 {[%clk 0:02:11.7]}
18... Rxf5 {[%clk 0:01:53]} 19. f4 {[%clk 0:02:08.1]} 19... Bxc3 {[%clk
0:01:42.5]} 20. Qxc3 {[%clk 0:02:04.2]} 20... Ne4 {[%clk 0:01:34]} 21. Qd4
{[%clk 0:01:55.6]} 21... d5 {[%clk 0:01:32.8]} 22. cxd5 {[%clk 0:01:53.1]} 22...
Rxd5 {[%clk 0:01:27.4]} 23. Qxe4 {[%clk 0:01:44.8]} 23... Rxd1 {[%clk
0:01:20.9]} 24. Qxe6+ {[%clk 0:01:44.5]} 24... Kg7 {[%clk 0:01:18.1]} 25. Qe5+
{[%clk 0:01:41.1]} 25... Kf7 {[%clk 0:00:54.9]} 26. Rxd1 {[%clk 0:01:32.4]}
26... Qxd1 {[%clk 0:00:54.5]} 27. Bd4 {[%clk 0:01:31.5]} 27... Re8 {[%clk
0:00:42.4]} 28. Qf6+ {[%clk 0:01:30.4]} 28... Kg8 {[%clk 0:00:39.6]} 29. Qg7#
{[%clk 0:01:30]} 1-0